bitfinex/quotes_ETHUSD_20240722
["timestamp","ask_amount","ask_price","bid_price","bid_amount"]
[1721674032281,2.87238,3481.5,3481.2,3.224443]
[1721674032726,2.87245,3481.4,3481.2,2.409]
[1721674033088,2.87249,3481.3,3481.2,2.409]
[1721674033389,2.87249,3481.3,3479.9,3.0]
[1721674033390,2.87257,3481.2,3480.7,2.87297]
[1721674033699,2.87265,3481.1,3480.6,5.36506]
[1721674034307,2.87265,3481.1,3480.6,5.36501]
[1721674034508,2.87265,3481.1,3480.7,0.536501]
[1721674034804,2.87287,3480.9,3480.7,0.536501]
[1721674035126,2.8728,3481.0,3480.6,2.492]
[1721674035327,2.87262,3481.2,3480.6,2.492]
[1721674035328,2.87266,3481.1,3480.6,2.492]
[1721674035496,2.87266,3481.1,3480.6,5.36502]
[1721674036342,2.87266,3481.1,3480.6,5.36501]
[1721674037332,2.87274,3481.0,3480.6,5.36501]
[1721674037487,2.4996,3481.9,3480.6,2.492]
[1721674037694,2.87222,3481.7,3480.6,2.492]
[1721674037893,2.87269,3481.1,3480.6,2.492]
[1721674039831,2.87269,3481.1,3480.6,5.36505]
[1721674040191,2.87282,3480.9,3480.6,2.492]
[1721674042111,2.87274,3481.0,3480.6,2.492]
[1721674042438,2.87274,3481.0,3480.6,3.028516]
[1721674042599,2.87288,3480.9,3480.6,3.028516]
[1721674042800,3.0,3481.4,3480.0,2.87351]
[1721674042801,2.87312,3480.6,3480.0,2.87351]
[1721674043002,2.87312,3480.6,3480.1,2.4732]
[1721674043003,2.87323,3480.4,3480.1,2.4732]
[1721674043501,2.87315,3480.5,3480.1,2.4732]
[1721674045255,2.87338,3480.3,3480.1,2.4732]
[1721674045404,2.87339,3480.2,3480.1,2.4732]
[1721674045828,2.87352,3480.1,3479.7,2.3292]
[1721674046041,2.87352,3480.1,3479.8,0.520309]
[1721674046758,2.87356,3480.0,3479.8,0.520309]
[1721674047053,2.87371,3479.9,3479.7,2.3292]
[1721674048750,2.87327,3480.4,3479.4,2.4293]
[1721674048900,2.87327,3480.4,3479.0,2.4293]
[1721674048901,2.87422,3479.2,3479.0,2.4293]
[1721674049103,2.87419,3479.3,3479.0,2.4293]
[1721674049315,2.87419,3479.3,3479.1,0.24293]
[1721674049531,2.87419,3479.3,3479.0,2.4293]
[1721674049752,2.87414,3479.4,3479.0,2.4293]
[1721674050527,2.87415,3479.3,3479.0,2.4293]
[1721674051835,2.87401,3479.5,3478.2,2.87501]
[1721674051836,2.87444,3479.0,3478.2,2.87499]
[1721674052034,1.7,3480.0,3478.2,3.75404418]
[1721674052035,2.87459,3478.8,3478.2,3.75404418]
[1721674052357,2.87459,3478.8,3478.3,2.87496]
[1721674052657,2.87459,3478.8,3478.3,2.87493]
[1721674052969,2.87459,3478.8,3478.2,0.87901418]
[1721674052970,2.8745,3478.9,3478.4,2.87488]
[1721674053163,2.8745,3478.9,3478.5,0.37538942]
[1721674055971,2.87438,3479.1,3478.5,3.25016942]
[1721674056258,2.87428,3479.2,3478.5,3.25016942]
[1721674056475,2.87428,3479.2,3478.6,2.8747]
[1721674056639,2.87428,3479.2,3478.6,8.17866]
[1721674056846,2.87415,3479.3,3478.8,2.87449]
[1721674057062,5.3038,3480.1,3478.7,0.85540494]
[1721674057063,2.87422,3479.2,3478.7,0.85540494]
[1721674058147,2.87422,3479.2,3478.7,3.73003494]
[1721674059055,2.8741,3479.4,3478.8,2.87455]
[1721674059253,2.8741,3479.4,3478.9,2.87445]
[1721674059575,2.87393,3479.6,3479.0,2.87433]
[1721674059779,2.87399,3479.5,3479.0,2.87433]
[1721674061147,2.87399,3479.5,3479.0,5.74866]
[1721674061345,2.87399,3479.5,3479.0,2.87433]
[1721674062980,2.87422,3479.2,3478.7,2.87462]
[1721674063572,2.87415,3479.3,3478.8,2.87451]
[1721674065964,3.0,3479.4,3478.7,0.817872]
[1721674066161,2.87427,3479.2,3478.7,0.817872]
[1721674066360,2.87434,3479.1,3478.6,5.30395]
[1721674066562,2.87427,3479.2,3478.6,5.30395]
[1721674066805,2.8743,3479.1,3478.6,5.30395]
[1721674068461,5.87394,3479.6,3479.0,2.87438]
[1721674068709,2.87406,3479.4,3478.9,2.87446]
[1721674068861,2.87406,3479.4,3478.9,3.692302]
[1721674068862,5.74819,3479.4,3478.9,3.692302]
[1721674069070,2.87432,3479.1,3478.6,5.30401]
[1721674069276,2.87426,3479.2,3478.7,2.87459]
[1721674069473,2.87426,3479.2,3478.6,2.4293]
[1721674069687,2.87431,3479.1,3478.6,5.30401]
[1721674070604,2.87443,3479.0,3478.6,2.4293]
[1721674070805,2.87457,3478.8,3478.6,2.4293]
[1721674071191,5.31679,3479.4,3478.6,2.4293]
[1721674071192,2.87463,3478.7,3478.6,2.4293]
[1721674071571,2.87448,3478.9,3478.6,2.4293]
[1721674074281,5.749,3478.9,3478.6,2.4293]
[1721674074832,2.87448,3478.9,3478.6,2.4293]
[1721674080430,2.8744,3479.0,3478.6,2.4293]
[1721674080634,5.31678,3479.4,3478.6,2.4293]
[1721674080792,2.87474,3478.6,3478.3,2.3491]
[1721674080992,2.87481,3478.5,3478.3,2.3491]
[1721674081421,2.87472,3478.6,3478.3,2.3491]
[1721674081685,5.74932,3478.7,3478.3,2.3491]
[1721674082131,2.87485,3478.5,3478.3,2.3491]
[1721674082931,5.74933,3478.7,3478.3,2.3491]
[1721674083159,2.87477,3478.6,3478.3,2.3491]
[1721674083350,2.8748,3478.5,3478.3,2.3491]
[1721674083640,2.87475,3478.6,3478.3,2.3491]
[1721674084010,2.87462,3478.8,3478.3,2.3491]
[1721674084211,2.87462,3478.8,3478.3,6.486477]
[1721674084419,2.87463,3478.7,3478.3,6.486477]
[1721674085614,2.87453,3478.9,3478.3,6.486477]
[1721674085814,2.87436,3479.1,3478.3,6.486477]
[1721674086019,2.87419,3479.3,3478.6,2.4955]
[1721674086326,2.4744,3479.7,3478.6,2.4955]
[1721674086327,2.87435,3479.1,3478.6,2.4955]
[1721674086526,2.87451,3478.9,3478.6,2.4955]
[1721674086925,2.2793,3479.6,3478.3,3.713817]
[1721674087125,2.8748,3478.5,3478.3,2.4514]
[1721674087454,2.87464,3478.7,3478.3,2.4514]
[1721674088314,2.87451,3478.9,3478.3,2.4514]
[1721674088315,2.87455,3478.8,3478.3,2.4514]
[1721674088512,2.87455,3478.8,3478.3,5.32631]
[1721674088748,2.87436,3479.1,3478.3,4.01153]
[1721674089316,2.87452,3478.9,3478.3,4.01153]
[1721674089523,2.87436,3479.1,3478.6,2.8747]
[1721674089856,2.87429,3479.2,3478.7,2.3532]
[1721674090152,2.87453,3478.9,3478.4,2.4444]
[1721674090674,2.87472,3478.6,3478.4,2.4444]
[1721674092757,2.8747,3478.7,3478.4,2.4444]
[1721674092965,2.87492,3478.4,3478.0,9.8962]
[1721674093274,2.87492,3478.4,3478.0,2.4962]
[1721674094726,2.87477,3478.6,3478.0,2.4962]
[1721674094727,2.87498,3478.3,3478.0,2.4962]
[1721674095229,2.87484,3478.5,3478.0,2.4962]
[1721674095693,2.87484,3478.5,3478.0,5.37136]
[1721674095845,2.87484,3478.5,3478.0,6.19754322]
[1721674099555,2.87485,3478.5,3478.0,3.32238322]
[1721674099755,2.87492,3478.4,3478.0,3.32238322]
[1721674100501,2.87492,3478.4,3478.0,6.19759322]
[1721674102878,2.87492,3478.4,3478.0,3.32238322]
[1721674104203,2.87423,3479.2,3478.2,0.927]
[1721674104419,2.87469,3478.7,3478.2,5.26101]
[1721674105015,2.87469,3478.7,3478.2,8.136]
[1721674105166,2.87469,3478.7,3478.2,5.26099]
[1721674105365,2.87469,3478.7,3478.3,0.906315]
[1721674105578,2.87469,3478.7,3478.3,3.781275]
[1721674106195,2.87456,3478.8,3478.3,3.781275]
[1721674106429,2.87456,3478.8,3478.3,6.656135]
[1721674106641,5.87373,3479.8,3478.6,2.87465]
[1721674106642,2.87419,3479.3,3478.6,2.87465]
[1721674106809,2.87437,3479.1,3478.7,2.3465]
[1721674108442,2.87427,3479.2,3478.7,2.3465]
[1721674108599,2.8743,3479.1,3478.7,2.3465]
[1721674109995,2.87411,3479.4,3478.7,5.22113]
[1721674110326,0.14596467,3479.3,3478.7,6.030712]
[1721674110502,2.87429,3479.2,3478.7,3.156082]
[1721674110710,0.927,3479.5,3478.7,3.156082]
[1721674110711,2.87417,3479.3,3478.7,3.156082]
[1721674111142,2.87414,3479.3,3478.8,2.87451]
[1721674111351,2.87414,3479.3,3478.8,3.8577402]
[1721674111710,2.87414,3479.3,3478.8,0.9832302]
[1721674111910,2.87432,3479.1,3478.8,0.9832302]
[1721674112315,2.87414,3479.3,3478.8,0.9832302]
[1721674112316,2.87422,3479.2,3478.8,0.9832302]
[1721674112556,3.80103,3479.5,3478.8,3.8577302]
[1721674112720,0.14596162,3479.4,3478.8,3.8577302]
[1721674112917,2.87414,3479.3,3478.8,3.8577302]
[1721674113831,2.87423,3479.2,3478.8,3.8577302]
[1721674114054,2.87417,3479.3,3478.8,3.8577302]
[1721674114655,2.87414,3479.3,3478.8,3.8577102]
[1721674115947,2.87427,3479.2,3478.8,0.9832302]
[1721674116131,0.927,3479.6,3478.7,2.3465]
[1721674116132,2.87402,3479.5,3478.7,2.3465]
[1721674116349,2.87424,3479.2,3478.7,2.3465]
[1721674117749,2.87424,3479.2,3478.7,5.22109]
[1721674118415,2.8742,3479.3,3478.8,2.87455]
[1721674119043,5.74841,3479.3,3478.8,2.87455]
[1721674119256,2.8742,3479.3,3478.7,5.22111]
[1721674119461,2.87426,3479.2,3478.7,5.22111]
[1721674119668,2.8735,3480.1,3479.1,2.8743]
[1721674119819,2.8735,3480.1,3479.0,2.87438]
[1721674119820,2.87393,3479.6,3479.0,2.87438]
[1721674120020,5.87397,3479.5,3479.0,2.87438]
[1721674121249,5.87397,3479.5,3478.9,5.28566]
[1721674121481,2.87411,3479.4,3478.9,5.28566]
[1721674124306,2.87414,3479.3,3478.9,5.28566]
[1721674125374,2.87436,3479.1,3478.8,7.4]
[1721674125572,2.87436,3479.1,3478.6,2.4465]
[1721674125787,2.87442,3479.0,3478.6,2.4465]
[1721674126924,2.87447,3478.9,3478.3,12.72145]
[1721674127220,2.87455,3478.8,3478.3,12.72145]
[1721674127606,2.87455,3478.8,3478.3,15.59635]
[1721674127938,2.87455,3478.8,3478.3,15.597735]
[1721674129222,2.87447,3478.9,3478.4,2.87488]
[1721674129376,2.87439,3479.0,3478.5,2.87477]
[1721674131122,2.87447,3478.9,3478.5,2.87477]
[1721674131634,2.87447,3478.9,3478.3,16.524715]
[1721674131918,2.87447,3478.9,3478.4,2.87484]
[1721674139619,2.87447,3478.9,3478.5,2.87478]
[1721674140022,2.87439,3479.0,3478.5,2.87478]
[1721674140216,2.87432,3479.1,3478.6,2.87471]
[1721674140448,5.7487,3479.1,3478.6,2.87471]
[1721674140981,2.87432,3479.1,3478.6,2.87471]
[1721674141381,2.87447,3478.9,3478.4,2.87488]
[1721674141680,2.87447,3478.9,3478.3,9.8465]
[1721674141854,2.87447,3478.9,3478.4,1.559637]
[1721674142376,2.87427,3479.2,3478.7,2.87458]
[1721674142554,2.8743,3479.1,3478.5,2.87474]
[1721674142752,2.8743,3479.1,3478.7,2.87462]
[1721674142970,2.8743,3479.1,3478.5,2.87474]
[1721674143152,2.8743,3479.1,3478.6,2.87467]
[1721674143350,2.8743,3479.1,3478.5,4.3955277]
[1721674144382,5.74868,3479.1,3478.6,2.87471]
[1721674144552,2.8743,3479.1,3478.6,2.87471]
[1721674144753,2.8743,3479.1,3478.6,2.87466]
[1721674144952,2.87423,3479.2,3478.7,2.87459]
[1721674145987,2.87423,3479.2,3478.7,2.87458]
[1721674146696,2.87431,3479.1,3478.7,2.87458]
[1721674147390,2.87422,3479.2,3478.7,2.87458]
[1721674148272,2.87431,3479.1,3478.6,2.87471]
[1721674148581,2.87431,3479.1,3478.7,2.87463]
[1721674149344,2.87431,3479.1,3478.6,2.87471]
[1721674150147,2.87422,3479.2,3478.7,2.87462]
[1721674150645,0.14611837,3479.1,3478.7,2.87462]
[1721674150850,2.87432,3479.1,3478.5,4.3954977]
[1721674151054,2.87439,3479.0,3478.5,4.3954977]
[1721674151492,2.87449,3478.9,3478.5,1.5207877]
[1721674151791,2.87432,3479.1,3478.5,4.3955577]
[1721674151792,2.87439,3479.0,3478.5,4.3955577]
[1721674151951,2.87477,3478.6,3478.3,7.4]
[1721674153673,2.3001,3478.7,3478.3,7.4]
[1721674153959,2.87438,3479.1,3478.6,0.927]
[1721674154162,2.3616,3479.2,3478.8,0.927]
[1721674154471,5.23586,3479.2,3478.8,0.927]
[1721674154673,2.87426,3479.2,3478.8,0.927]
[1721674154877,8.22543,3479.4,3478.8,0.927]
[1721674155066,4.13022186,3479.3,3478.8,0.927]
[1721674155268,3.0,3479.2,3478.8,0.927]
[1721674155468,3.0,3479.2,3478.8,3.80155]
[1721674157218,3.0,3479.2,3479.0,2.87434]
[1721674157505,7.2231272,3480.3,3479.2,2.87416]
[1721674157506,3.0,3479.6,3479.2,2.87416]
[1721674157717,0.14616191,3479.5,3479.3,3.80109]
[1721674157867,5.27325,3479.9,3479.3,2.87409]
[1721674158067,0.14616585,3479.8,3479.3,2.87409]
[1721674158377,0.14616585,3479.7,3479.3,2.87409]
[1721674158676,5.27325,3479.9,3479.3,2.87409]
[1721674158866,3.019915,3479.8,3479.2,2.87416]
[1721674159063,3.146175,3479.7,3479.2,5.74833]
[1721674159317,3.0,3479.7,3479.2,2.87416]
[1721674159864,3.0,3479.7,3479.3,2.87408]
[1721674160102,3.0,3479.8,3479.3,2.87408]
[1721674160268,0.14617549,3479.7,3479.3,2.87408]
[1721674160470,5.87373,3479.8,3479.3,2.87408]
[1721674160687,0.14617606,3479.7,3479.3,2.87408]
[1721674160967,5.87373,3479.8,3479.3,2.87408]
[1721674161135,0.14620096,3479.7,3479.4,2.87403]
[1721674161281,3.0,3479.8,3479.5,2.87392]
[1721674161482,5.4513,3480.1,3479.5,2.87392]
[1721674161802,1.14360556,3480.0,3479.5,2.87392]
[1721674162112,0.14620029,3479.9,3479.5,2.87392]
[1721674162334,0.14620029,3479.8,3479.5,2.87392]
[1721674162534,2.2876,3480.4,3479.4,3.43057999]
[1721674162736,0.14620326,3480.3,3479.8,2.87367]
[1721674163034,5.55964,3480.4,3479.8,2.87367]
[1721674163340,0.14620589,3480.3,3479.8,2.87367]
[1721674163494,2.87335,3480.3,3479.7,2.87381]
[1721674164127,3.0,3480.2,3479.7,2.87381]
[1721674164513,3.0,3480.2,3479.7,5.7475]
[1721674164838,7.109449,3480.2,3479.4,5.32015]
[1721674165138,7.109449,3480.2,3479.2,2.3444]
[1721674165139,2.354,3480.0,3479.2,2.3444]
[1721674165292,2.87377,3479.8,3479.3,2.87409]
[1721674165489,5.2276,3480.0,3479.4,2.874]
[1721674165994,5.2276,3480.0,3479.5,2.87397]
[1721674166495,7.109439,3480.2,3479.5,2.87392]
[1721674166496,2.87348,3480.1,3479.5,2.87392]
[1721674166845,7.109439,3480.2,3479.3,3.80107]
[1721674166846,2.87356,3480.0,3479.3,3.80107]
[1721674167145,4.235999,3480.2,3479.3,3.80107]
[1721674167146,7.109439,3480.2,3479.3,3.80107]
[1721674167328,2.87365,3479.9,3479.4,2.874]
[1721674170916,5.74703,3480.1,3479.4,2.87399]
[1721674171259,2.8736,3480.0,3479.5,2.87396]
[1721674173566,2.87368,3479.9,3479.3,2.87407]
[1721674173861,2.87378,3479.8,3479.2,5.21856]
[1721674174364,2.87386,3479.7,3479.2,2.3444]
[1721674174518,2.8739,3479.6,3479.2,2.3444]
[1721674175348,2.4272,3479.9,3479.0,5.33063]
[1721674175519,2.4272,3479.9,3479.2,2.87418]
[1721674175520,2.87373,3479.8,3479.2,2.87418]
[1721674176023,3.6296299,3480.0,3479.4,2.87405]
[1721674176239,2.87361,3480.0,3479.4,2.87405]
[1721674176757,2.87368,3479.9,3479.4,2.87405]
[1721674177934,2.87368,3479.9,3479.4,2.874]
[1721674178132,2.87368,3479.9,3479.5,2.3718]
[1721674180168,3.0,3480.2,3479.6,2.87385]
[1721674180356,2.87356,3480.0,3479.5,2.3718]
[1721674180556,2.87356,3480.0,3479.5,5.24576]
[1721674182367,2.87365,3479.9,3479.5,2.3718]
[1721674182564,2.87356,3480.0,3479.5,2.3718]
[1721674182739,2.87364,3479.9,3479.5,2.3718]
[1721674183075,2.87356,3480.0,3479.5,2.3718]
[1721674183271,2.87356,3480.0,3479.5,5.24577]
[1721674183571,2.87356,3480.0,3479.1,5.19906]
[1721674183572,2.8739,3479.6,3479.1,5.19906]
[1721674183937,2.87381,3479.7,3479.1,5.19906]
[1721674184236,2.87381,3479.7,3479.2,2.87416]
[1721674184433,2.87381,3479.7,3479.2,2.87421]
[1721674185339,2.87395,3479.6,3479.1,5.19906]
[1721674185540,2.87395,3479.6,3479.2,2.87421]
[1721674186266,8.16249,3479.9,3479.2,2.87417]
[1721674186576,2.87381,3479.7,3479.2,2.87417]
[1721674187170,2.87381,3479.7,3479.2,5.74834]
[1721674187469,2.87381,3479.7,3479.2,2.87417]
[1721674188450,2.87399,3479.5,3479.1,3.2518]
[1721674188634,2.87399,3479.5,3479.1,2.3248]
[1721674188838,2.87406,3479.4,3478.9,13.65817]
[1721674189181,5.74802,3479.5,3479.0,2.87438]
[1721674189490,2.8741,3479.4,3478.9,9.8567]
[1721674189836,2.8741,3479.4,3478.9,6.25812]
[1721674190029,2.8741,3479.4,3479.0,2.87438]
[1721674190771,2.8741,3479.4,3478.8,2.87449]
[1721674190772,2.87448,3478.9,3478.5,19.64]
[1721674191077,0.927,3479.2,3478.5,2.87473]
[1721674191289,0.927,3479.2,3478.4,5.33156]
[1721674191290,2.87431,3479.1,3478.6,2.87471]
[1721674191585,3.0,3479.3,3478.9,2.87441]
[1721674191791,5.35353,3479.6,3478.9,6.25813]
[1721674191792,2.87406,3479.4,3478.9,6.25813]
[1721674191944,2.4796,3479.8,3478.9,7.17139]
[1721674191945,3.0,3479.3,3478.9,7.17139]
[1721674192142,5.35338,3479.8,3478.9,7.17139]
[1721674192143,2.87402,3479.5,3478.9,7.17139]
[1721674192446,3.0,3479.4,3479.1,2.8743]
[1721674192957,3.0,3479.5,3479.1,2.8743]
[1721674193156,5.87403,3479.5,3478.9,4.29698]
[1721674193344,5.87403,3479.5,3478.9,2.4567]
[1721674193946,5.87403,3479.5,3478.9,5.33111]
[1721674194185,5.87403,3479.5,3478.9,8.20552]
[1721674194350,3.0,3479.5,3479.1,2.87426]
[1721674194550,3.0,3479.6,3479.1,2.87426]
[1721674194979,5.87389,3479.6,3479.1,2.87426]
[1721674196461,2.87398,3479.5,3478.9,6.244342]
[1721674196660,2.87406,3479.4,3478.9,5.33109]
[1721674196912,2.87415,3479.3,3478.8,2.87455]
[1721674197104,2.87415,3479.3,3478.9,2.87446]
[1721674197282,2.87398,3479.5,3478.8,2.87455]
[1721674197678,2.87434,3479.1,3478.7,7.4]
[1721674198166,2.87429,3479.2,3478.7,7.4]
[1721674198167,2.87441,3479.0,3478.7,7.4]
[1721674198370,2.87449,3478.9,3478.7,7.4]
[1721674198702,2.87449,3478.9,3478.5,2.87479]
[1721674198703,2.87447,3478.9,3478.5,2.87479]
[1721674198903,2.87447,3478.9,3478.3,3.2649]
[1721674199295,2.87447,3478.9,3478.4,2.87482]
[1721674200212,2.87431,3479.1,3478.4,2.87482]
[1721674200519,5.23738,3479.3,3478.6,2.87467]
[1721674200703,2.87406,3479.4,3478.6,2.87465]
[1721674200869,2.87406,3479.4,3478.5,0.927]
[1721674200870,3.0,3479.3,3478.8,5.74901]
[1721674201098,3.0,3479.3,3478.9,5.22872]
[1721674201293,3.0,3479.4,3479.0,2.87437]
[1721674201527,3.0,3479.4,3479.1,2.87427]
[1721674201731,0.927,3479.8,3479.1,2.87427]
[1721674201732,3.0,3479.5,3479.1,2.87427]
[1721674201928,3.0,3479.7,3479.1,2.87427]
[1721674202100,2.87389,3479.6,3479.1,2.87427]
[1721674202429,5.87397,3479.5,3479.0,2.87438]
[1721674202932,5.87397,3479.5,3479.0,5.74871]
[1721674203131,3.0,3479.5,3479.1,2.87429]
[1721674203440,2.87389,3479.7,3478.9,2.87443]
[1721674203441,5.2429,3479.4,3478.9,2.87443]
[1721674203936,3.0,3479.3,3478.9,2.87443]
[1721674204296,3.0,3479.3,3478.9,2.87442]
[1721674204495,3.0,3479.3,3479.0,2.87438]
[1721674204734,3.0,3479.4,3479.0,2.87438]
[1721674206343,3.0,3479.4,3479.1,2.87426]
[1721674206630,3.0,3479.5,3479.1,2.87426]
[1721674206933,3.0,3479.5,3479.1,2.87425]
[1721674207434,2.87364,3479.9,3479.2,5.33591]
[1721674207611,3.0,3479.8,3479.2,5.33591]
[1721674207933,2.87364,3479.9,3479.4,2.874]
[1721674209007,3.0,3479.8,3479.4,2.874]
[1721674209406,2.87348,3480.1,3479.4,3.5290125]
[1721674209407,3.0,3480.0,3479.4,3.5290125]
[1721674209613,3.0,3480.0,3479.6,2.87384]
[1721674210192,5.87364,3480.0,3479.4,3.5289925]
[1721674210418,5.87364,3480.0,3479.4,2.87398]
[1721674210996,5.87364,3480.0,3479.4,5.74799]
[1721674211205,5.87364,3480.0,3479.5,2.87393]
[1721674214106,3.0,3480.0,3479.5,2.87393]
[1721674214619,3.0,3480.0,3479.6,2.87388]
[1721674216325,3.927,3480.0,3479.5,2.87395]
[1721674216536,3.927,3480.0,3479.2,2.4617]
[1721674216537,5.8737,3479.9,3479.2,5.33587]
[1721674216724,0.927,3480.0,3479.4,2.87398]
[1721674216930,3.927,3480.0,3479.4,2.87398]
[1721674217247,2.87369,3479.9,3479.3,2.87412]
[1721674217409,3.0,3479.8,3479.4,2.87405]
[1721674217961,3.0,3479.8,3479.5,2.87397]
[1721674218108,3.0,3479.8,3479.4,2.87404]
[1721674218923,3.0,3479.8,3479.4,2.874]
[1721674219108,3.0,3479.8,3479.5,2.87396]
[1721674219310,3.0,3479.9,3479.5,2.87396]
[1721674219724,5.87369,3479.9,3479.4,2.87405]
[1721674219956,2.87378,3479.8,3479.3,2.87413]
[1721674220124,5.87369,3479.9,3479.0,7.4]
[1721674220125,2.87411,3479.4,3479.0,7.4]
[1721674220525,3.0,3479.3,3479.0,7.4]
[1721674220822,3.0,3479.3,3479.0,10.27438]
[1721674222415,3.0,3479.5,3479.0,10.27438]
[1721674222616,5.87399,3479.5,3479.0,2.87438]
[1721674223623,5.87399,3479.5,3478.8,2.2815]
[1721674223624,2.87414,3479.3,3478.8,2.2815]
[1721674223811,3.0,3479.2,3478.8,5.15599]
[1721674225132,3.0,3479.2,3478.8,2.87449]
[1721674226053,3.0,3479.2,3478.9,2.8744]
[1721674226262,3.0,3479.3,3478.9,2.8744]
[1721674226617,5.87415,3479.3,3478.6,23.44166]
[1721674226919,3.0,3479.3,3479.1,2.8743]
[1721674227226,2.87398,3479.5,3479.0,2.87438]
[1721674227443,3.0,3479.4,3479.0,2.87438]
[1721674228313,3.0,3479.4,3479.0,5.34968]
[1721674228519,3.0,3479.4,3479.0,2.4753]
[1721674228845,3.0,3479.6,3479.0,2.4753]
[1721674229049,2.87406,3479.4,3479.0,2.4753]
[1721674229223,3.0,3479.3,3479.0,2.4753]
[1721674229961,3.0,3479.3,3479.0,5.34968]
[1721674230255,3.0,3479.4,3479.1,2.87429]
[1721674230427,3.0,3479.6,3479.1,2.87429]
[1721674230631,2.87393,3479.6,3479.1,2.87429]
[1721674230944,3.0,3479.5,3479.1,2.87429]
[1721674231149,3.0,3479.5,3479.4,2.87405]
[1721674231356,3.0,3479.8,3479.4,2.87405]
[1721674234080,5.87373,3479.8,3479.3,2.87411]
[1721674234964,3.0,3479.8,3479.4,2.87404]
[1721674238856,2.87348,3480.1,3479.6,2.87385]
[1721674239046,3.0,3480.0,3479.6,2.87385]
[1721674239652,3.2467,3480.4,3479.6,2.87385]
[1721674239853,3.2467,3480.4,3479.8,2.87371]
[1721674239854,6.01917293,3480.3,3479.8,2.87371]
[1721674240052,5.87335,3480.3,3479.8,2.87371]
[1721674240697,2.2645,3480.6,3479.8,2.87367]
[1721674240858,0.14582821,3480.5,3480.0,2.87352]
[1721674241201,2.87298,3480.7,3480.1,2.87347]
[1721674241399,2.87298,3480.7,3480.2,2.87337]
[1721674241760,2.8729,3480.8,3480.2,2.87333]
[1721674241993,2.87243,3481.4,3480.9,2.87276]
[1721674241994,2.292,3481.4,3480.9,2.87276]
[1721674242197,2.87234,3481.5,3480.9,2.87282]
[1721674242433,2.87224,3481.6,3481.0,2.87269]
[1721674242711,2.87224,3481.6,3480.9,2.87276]
[1721674242891,2.87224,3481.6,3481.0,2.87271]
[1721674243060,3.764376,3481.6,3481.0,2.87271]
[1721674243462,3.79912,3481.8,3481.0,2.8727]
[1721674243771,2.87212,3481.8,3481.2,2.87256]
[1721674243997,2.87212,3481.8,3481.3,2.87247]
[1721674244894,5.74395,3482.0,3481.3,2.87243]
[1721674245085,3.0,3481.7,3481.3,2.87242]
[1721674245288,3.0,3481.9,3481.3,2.87241]
[1721674245495,0.812196,3481.9,3481.5,2.87228]
[1721674245697,0.0816427,3482.5,3481.0,2.349]
[1721674245698,2.87168,3482.3,3481.0,5.22169]
[1721674245894,2.87168,3482.3,3481.6,2.87217]
[1721674246214,2.87168,3482.3,3481.7,2.87211]
[1721674247481,2.87168,3482.3,3481.0,2.349]
[1721674247482,2.87183,3482.1,3481.5,2.87227]
[1721674247688,3.0,3482.0,3481.5,2.87227]
[1721674248003,0.887183,3481.9,3481.5,2.87232]
[1721674249481,0.887183,3481.9,3481.6,2.87223]
[1721674250360,3.0,3482.1,3481.0,5.2217]
[1721674250361,3.0,3482.1,3481.8,2.87206]
[1721674250563,3.0,3482.3,3481.9,2.87191]
[1721674250761,0.0816427,3482.5,3481.7,2.4205]
[1721674250961,0.0816427,3482.5,3482.3,2.87162]
[1721674251184,0.0816427,3482.5,3482.4,2.87158]
[1721674251909,0.0816427,3482.5,3482.4,11.58306]
[1721674252566,0.0816427,3482.5,3482.4,8.13716]
[1721674253198,0.0816427,3482.5,3482.4,5.26558]
[1721674253672,0.0816427,3482.5,3482.4,8.13716]
[1721674254796,0.0816427,3482.5,3482.4,2.87158]
[1721674254967,0.0816427,3482.5,3481.9,2.2843]
[1721674255162,0.0816427,3482.5,3482.2,2.87169]
[1721674255365,0.0816427,3482.5,3482.3,2.87165]
[1721674255607,0.0816427,3482.5,3482.2,2.87169]
[1721674255608,0.0816427,3482.5,3482.4,2.87158]
[1721674255962,0.0816427,3482.5,3482.1,2.87179]
[1721674256169,0.0816427,3482.5,3482.2,2.87173]
[1721674256422,0.0816427,3482.5,3482.3,2.87166]
[1721674256767,0.0816427,3482.5,3482.2,2.87169]
[1721674257206,0.0816427,3482.5,3482.0,2.87184]
[1721674257690,0.0816427,3482.5,3482.1,2.87176]
[1721674258207,0.0816427,3482.5,3482.2,2.87173]
[1721674258370,0.0816427,3482.5,3482.2,5.74341]
[1721674258570,0.0816427,3482.5,3482.3,2.87166]
[1721674258993,0.0816427,3482.5,3482.4,2.87158]
[1721674259705,0.0816427,3482.5,3482.2,2.87171]
[1721674260302,0.0816427,3482.5,3482.3,2.87161]
[1721674260602,0.0816427,3482.5,3482.4,2.87158]
[1721674260906,0.0816427,3482.5,3482.2,2.87168]
[1721674261437,0.0816427,3482.5,3482.3,2.87161]
[1721674261593,0.0816427,3482.5,3482.4,2.87158]
[1721674262830,0.0816427,3482.5,3482.2,2.87168]
[1721674263193,0.0816427,3482.5,3482.3,2.87166]
[1721674263541,0.0816427,3482.5,3482.2,2.87168]
[1721674263706,0.0816427,3482.5,3482.3,2.87161]
[1721674265739,0.0816427,3482.5,3482.2,0.515598]
[1721674266041,0.0816427,3482.5,3482.1,2.87182]